Cogmind - Beta 14 @@@ ROGUE MODE // 2024.08.21 @ 00:44:36 Player: TheProctologist Result: Destroyed by D-53 Grenadier with Mini Grenade Launcher Performance ------------- Evolutions (0) 0 Regions Visited (2) 400 Robots Destroyed (15) 75 Value Destroyed (300) 300 Prototype IDs (0) 0 Alien Tech Used (0) 0 Bonus (0) 0 TOTAL SCORE: 775 Bonus ------- None Cogmind --------- Core Integrity 0/250 Matter 292/300 Energy 100/100 System Corruption 4% Temperature Cool (3) Movement Walking (120) Location -10/Mines Parts ------- > --- POWER (1) -------- (None) > --- PROPULSION (2) --- Flexi-carbon Leg Flexi-carbon Leg > --- UTILITY (2) ------ Large Storage Unit Targeting Computer > --- WEAPON (2) ------- Improved Light Cannon Improved Light Cannon > --- INVENTORY (15) --- Light Ion Engine Light Treads Improved Treads Improved Treads Improved Treads Improved Treads Splice Drone Bay Heavy Assault Rifle Improved Light Cannon Improved Light Cannon Grenade Launcher Datajack Maul Maul Maul Peak State ------------ > --- POWER ------------ Light Ion Engine > --- PROPULSION ------- Flexi-carbon Leg Flexi-carbon Leg > --- UTILITY ---------- Large Storage Unit Targeting Computer > --- WEAPON ----------- Improved Light Cannon Improved Light Cannon > --- INVENTORY -------- Light Ion Engine Light Treads Improved Treads Improved Treads Improved Treads Improved Treads Splice Drone Bay Heavy Assault Rifle Improved Light Cannon Improved Light Cannon Datajack Maul Maul Maul [Rating: 20] Favorites ----------- Power Ion Engine Engine Ion Engine Propulsion Improved Treads Treads Improved Treads Leg Flexi-carbon Leg Utility Large Storage Unit Device Improved Terrain Scanner Storage Large Storage Unit Processor Targeting Computer Weapon Improved Light Cannon Energy Gun EM Pulse Gun Ballistic Gun Light Assault Rifle Ballistic Cannon Improved Light Cannon Launcher Grenade Launcher Build | -11 -10 -10 ------- Run | Yrd Mat Min Slots Evolved . | . . . Power . | . . . Propulsion . | . . . Utility . | . . . Weapon . | . . . Parts Attached 25 | 8 9 8 Power 3 | 2 . 1 Engine 3 | 2 . 1 Core . | . . . Reactor . | . . . Propulsion 7 | 2 3 2 Treads 5 | 2 3 . Leg 2 | . . 2 Wheel . | . . . Hover . | . . . Flight . | . . . Utility 5 | 2 2 1 Device 1 | 1 . . Storage 3 | 1 2 . Processor 1 | . . 1 Hackware . | . . . Protection . | . . . Artifact . | . . . Weapon 10 | 2 4 4 Energy Gun 1 | 1 . . Energy Cannon . | . . . Ballistic Gun 1 | 1 . . Ballistic Cannon 5 | . 3 2 Launcher 3 | . 1 2 Special Weapon . | . . . Impact Weapon . | . . . Slashing Weapon . | . . . Piercing Weapon . | . . . Special Melee Weapon . | . . . Unidentified Prototypes . | . . . Parts Lost 2 | . . 2 Power 2 | . . 2 Propulsion . | . . . Utility . | . . . Weapon . | . . . Highest Loss Streak 1 | . . 1 To Critical Strikes . | . . . Average Slot Usage (%) 99 | . 99 99 Engine 13 | . 14 13 Treads 21 | . 27 14 Leg 6 | . . 13 Device 8 | . 14 1 Storage 14 | . 14 14 Processor 5 | . . 12 Ballistic Cannon 27 | . 26 27 Peak Build Rating 20 | 9 15 20 Average Rating 14 | 5 14 16 On Entrance 8 | . 9 15 Naked Turns . | . . . Heaviest Build 34 | 14 34 34 Greatest Support 46 | 40 46 46 Greatest Overweight (x) 1 | . . 1 Average Overweight (x) . | . . . Largest Inventory Capacity 15 | 8 15 15 Average Capacity 13 | 6 12 15 Most Carried 15 | 5 15 15 Average Carried 12 | 2 11 14 Final Capacity 15 | 8 15 15 Final Carried 15 | 5 15 15 Class Distribution -------------------- 100% | Mutant Dominant Class ---------------- Mutant | -10/Materials Mutant | -10/Mines Resources | -11 -10 -10 ----------- Run | Yrd Mat Min Matter Collected 805 | 283 251 271 Remotely . | . . . Salvage Created 493 | 113 326 54 Parts 30 | 7 23 . Haulers Intercepted 2 | . 2 . Recyclers Shooed 1 | . 1 . Parts Field Recycled . | . . . Retrieved Matter . | . . . Parts Self-Destructed . | . . . Prevented . | . . . Kills | -11 -10 -10 ------- Run | Yrd Mat Min Combat Hostiles Destroyed 24 | . 10 14 Cannons 14 | . 10 4 AOE 10 | . . 10 Classes Destroyed 7 | 2 4 1 Tunneler 1 | 1 . . Hauler 2 | . 2 . Recycler 1 | 1 . . Watcher 1 | . 1 . Swarmer 4 | . 4 . Grunt 6 | . 6 . Assembled 14 | . . 14 Best Kill Streak 14 | 2 4 14 Combat Bots Only 14 | . 3 14 Max Kills in Single Turn 4 | 1 1 4 Gunslinging . | . . . Exploded 4 | . . 4 Melee . | . . . Uniques/NPCs Destroyed . | . . . Combat | -11 -10 -10 -------- Run | Yrd Mat Min Hostile Shots Fired 60 | . 26 34 Missed 15 | . 7 8 Damage Taken 942 | . 205 737 Core 253 | . 26 227 Absorbed by Shields . | . . . Regen/Repaired (Parts) 82 | . 82 . Core Remaining (%) 100 | 100 . . Volleys Fired 43 | 3 21 19 Largest 2 | 2 2 2 Hottest 78 | 60 78 78 Shots Fired 90 | 6 46 38 Gun 6 | 6 . . Cannon 80 | . 46 34 Launcher 4 | . . 4 Special . | . . . Kinetic 83 | 3 46 34 Thermal . | . . . Explosive 4 | . . 4 Electromagnetic 3 | 3 . . Robot Hit Streak 10 | 3 10 2 Robot Miss Streak 4 | 1 4 2 Penetration Max . | . . . Secondary Targets . | . . . Shots Hit Robots 37 | 4 23 10 Core Hits 45 | 3 15 27 Critical Kills . | . . . Critical Parts Destroyed . | . . . Critical Strikes 1 | . 1 . Blast 1 | . 1 . Melee Attacks . | . . . Impact . | . . . Slashing . | . . . Piercing . | . . . Sneak Attacks . | . . . Combat Hostiles . | . . . Follow-up Attacks . | . . . Damage Inflicted 1294 | 47 542 705 Guns 47 | 47 . . Cannons 671 | . 522 149 Explosions 545 | . . 545 Melee . | . . . Ramming 31 | . 20 11 Kinetic 679 | 8 522 149 Thermal . | . . . Explosive 545 | . . 545 Electromagnetic 39 | 39 . . Impact . | . . . Slashing . | . . . Piercing . | . . . Highest Corruption 4 | . 4 4 Average Corruption 3 | . 3 4 Corruption Purged . | . . . Corruption Blocked . | . . . Effects 26 | . 11 15 Message Errors 6 | . 3 3 Matter Fused 3 | . 1 2 Heat Flow Errors 2 | . 1 1 Energy Discharges 2 | . . 2 Data Loss (minor) 7 | . 1 6 Data Loss (major) 1 | . 1 . Misfires 5 | . 4 1 Overload Shots . | . . . Overflow Damage 9 | . 4 5 Projectiles 4 | . 4 . Explosions 5 | . . 5 Melee . | . . . Knockbacks 8 | . 5 3 Impact . | . . . Kinetic 7 | . 4 3 Secondary 1 | . 1 . Self-Inflicted Damage 60 | . . 60 Shots 2 | . . 2 Rammed 5 | . 4 1 Targets Rammed 5 | . 4 1 Kicked . | . . . Crushed . | . . . Highest Temperature 172 | 20 135 172 Average Temperature 44 | 15 44 46 Received Heat Transfer 163 | . 63 100 Siege Activations . | . . . Robots Corrupted . | . . . Combat Hostiles . | . . . Parts Fried . | . . . Impact Corruptions . | . . . Robots Melted . | . . . Combat Hostiles . | . . . Parts Melted . | . . . Heat Transferred . | . . . Parts Sabotaged . | . . . Parts Stolen . | . . . Parts Stripped . | . . . Power Chain Reactions . | . . . Alert | -11 -10 -10 ------- Run | Yrd Mat Min Peak Influence 227 | 10 227 27 Initial 10 | . 6 10 Average 67 | 3 126 8 Maximum Alert Level 1 | . 1 . Low Security (%) 89 | 100 79 100 Level 1 10 | . 20 . Level 2 . | . . . Level 3 . | . . . Level 4 . | . . . Level 5 . | . . . High Security . | . . . Max Security . | . . . Squads Dispatched 1 | . 1 . Investigation . | . . . Extermination . | . . . Reinforcement 1 | . 1 . Assault . | . . . Garrison . | . . . Intercept . | . . . Searches Triggered . | . . . Construction Impeded . | . . . Haulers Reinforced . | . . . Active Scanning Responses . | . . . Cargo Convoy Interrupts . | . . . Stealth | -11 -10 -10 --------- Run | Yrd Mat Min Distress Signals . | . . . Communications Jammed . | . . . Distress Signals . | . . . Times Spotted 33 | . 15 18 Peak Tracking Total 7 | . 5 7 Tactical Retreats 1 | . 1 . Traps | -11 -10 -10 ------- Run | Yrd Mat Min Traps Triggered 2 | . 2 . Indirectly . | . . . Trap Hack Attempts . | . . . Triggered . | . . . Disarmed . | . . . Reprogrammed . | . . . Reused . | . . . Traps Extracted . | . . . Installed . | . . . Triggered . | . . . Machines | -11 -10 -10 ---------- Run | Yrd Mat Min Machines Disabled 1 | . 1 . Max in Single Turn 1 | . 1 . Machines Repaired . | . . . Machines Dismantled . | . . . Machines Sabotaged . | . . . Overloaded Fab Kills . | . . . Hacking | -11 -10 -10 --------- Run | Yrd Mat Min Machines Accessed 7 | . 5 2 Terminals 5 | . 4 1 Fabricators . | . . . Repair Stations 1 | . 1 . Recycling Units . | . . . Scanalyzers . | . . . Garrison Access . | . . . Total Hacks 20 | . 17 3 Successful 12 | . 10 2 Failed 8 | . 7 1 Catastrophic 2 | . 1 1 Database Lockouts . | . . . Manual 9 | . 7 2 Terminals 13 | . 11 2 Fabricators . | . . . Repair Stations 6 | . 6 . Recycling Units . | . . . Scanalyzers . | . . . Garrison Access . | . . . Terminal Hacks 5 | . 3 2 Open Door 1 | . . 1 Branch Access Points 2 | . 1 1 Repair Station Index 1 | . 1 . Zone Layout 1 | . 1 . Fabricator Hacks . | . . . Repair Station Hacks 5 | . 5 . Scan Component 3 | . 3 . Repair 2 | . 2 . Recycling Unit Hacks . | . . . Scanalyzer . | . . . Garrison Access Hacks . | . . . Unauthorized Hacks 2 | . 2 . Terminals 2 | . 2 . Botnet 2 | . 2 . Fabricators . | . . . Repair Stations . | . . . Recycling Units . | . . . Scanalyzers . | . . . Garrison Access . | . . . Data Cores Recovered . | . . . Used . | . . . Hacking Detections 5 | . 4 1 Full Trace Events . | . . . Feedback Events . | . . . Feedback Blocked . | . . . Robot Schematics Acquired . | . . . Robots Built . | . . . Authchips . | . . . Time . | . . . Total Robot Build Rating . | . . . Part Schematics Acquired . | . . . Parts Built . | . . . Authchips . | . . . Time . | . . . Total Part Build Rating . | . . . Parts Repaired 2 | . 2 . Time 64 | . 64 . Parts Recycled . | . . . Recycled Matter . | . . . Retrieved Matter . | . . . Retrieved Components . | . . . Parts Scanalyzed . | . . . Part Schematics Acquired . | . . . Parts Damaged . | . . . Bothacking | -11 -10 -10 ------------ Run | Yrd Mat Min Used RIF Installer . | . . . Robots Hacked . | . . . Non-combat . | . . . Combat . | . . . Robot Hacks Applied . | . . . Relay Couplers Released . | . . . Fabnet Peak Effective % . | . . . Robots Rewired . | . . . Allies Hacked . | . . . Hacks Repelled . | . . . Allies | -11 -10 -10 -------- Run | Yrd Mat Min Total Allies . | . . . Largest Group . | . . . Highest-Rated Group . | . . . Highest-Rated Ally . | . . . Total Orders . | . . . Ally Attacks . | . . . Total Damage . | . . . Kills . | . . . Allies Corrupted . | . . . Allies Melted . | . . . Intel | -11 -10 -10 ------- Run | Yrd Mat Min Robot Analysis Total . | . . . Derelict Logs Recovered . | . . . Drone Launches . | . . . Drone Recoveries . | . . . Exploration | -11 -10 -10 ------------- Run | Yrd Mat Min Turns Passed 1848 | 118 930 800 Spaces Moved 1038 | 55 456 527 Core 3 | 3 . . Treads 735 | 52 456 227 Legs 300 | . . 300 Wheels . | . . . Hover . | . . . Flight . | . . . Fastest Speed 50 | 50 160 120 Average Speed 148 | 154 160 137 Slowest Speed 190 | 160 160 190 Overloaded Moves . | . . . Propulsion Burnouts . | . . . Robots Hopped . | . . . Cave-ins Triggered . | . . . Exploration Rate (%) 56 | 5 79 86 Regions Visited 2 Branch Regions 1 Pre-discovered Areas 1 | . . 1 Known Exits Taken 1 | . 1 . Unknown Exits Taken 1 | 1 . . Scrap Searched 1 | . . 1 Spaces Dug 8 | . . 8 Terrain Destroyed 28 | . 2 26 Melee . | . . . Projectile 13 | . 2 11 AOE 15 | . . 15 Terrain Rammed . | . . . Walls Destroyed . | . . . Machines Disabled . | . . . Actions | -11 -10 -10 --------- Run | Yrd Mat Min Total 1258 | 79 614 565 Wait 112 | 10 99 3 Move 1036 | 54 455 527 Hop . | . . . Pick Up 20 | 4 14 2 Fast Attach 14 | 7 4 3 Attach 2 | . . 2 Detach 4 | . 2 2 Swap 9 | 1 5 3 Drop 13 | . 10 3 Fire 43 | 3 21 19 Melee . | . . . Ram . | . . . Kick . | . . . Crush 5 | . 4 1 Escape Stasis . | . . . Rewire . | . . . Trap . | . . . Miscellaneous . | . . . Route ------- -11/Scrapyard -10/Materials (discovered 3 exits: [*Mat x2] / *Min) -10/Mines (discovered 2 exits: [*Mat x2]) History --------- Turn | Location | Event 40 | -11/Scrapyard | Discovered new exit (range 16) 119 | -11/Scrapyard | Entered Materials 315 | -10/Materials | Build established: Mutant 385 | -10/Materials | Discovered new exit (range 7) 451 | -10/Materials | Identified exit to Mines 611 | -10/Materials | Discovered new exit (range 6) 858 | -10/Materials | Repaired Imp. Treads 891 | -10/Materials | Repaired Imp. Light Cannon 1049 | -10/Materials | Entered Mines 1071 | -10/Mines | Found the Drone Emporium 1085 | -10/Mines | Found Prototype Device 1116 | -10/Mines | Discovered new exit (range 14) 1162 | -10/Mines | Discovered new exit (range 5) 1352 | -10/Mines | Assembled infested the area 1357 | -10/Mines | Assisted by a Guerilla fighting off Assembled 1445 | -10/Mines | Destroyed 14 combat bots 1525 | -10/Mines | Learned location of Storage (-9) 1813 | -10/Mines | Core integrity fell below 50% 1843 | -10/Mines | Core integrity fell below 20% 1849 | -10/Mines | Destroyed by D-53 Grenadier with Mini Grenade Launcher Last Messages --------------- 01599_ System corrupted: Energy discharge (-40). 01615_ U-05 Engineer lays Concrete. 01616_ U-05 Engineer builds a Wall. 01618_ Extracted 39 matter. 01628_ |CE|JBV,E/QVD 01662_ System corrupted: Component data lost. 01704_ U-05 Engineer lays Concrete. 01729_ U-05 Engineer builds a Wall. 01734_ U-05 Engineer lays Concrete. 01744_ U-05 Engineer builds a Wall. 01745_ U-05 Engineer lays Concrete. 01757_ U-05 Engineer builds a Wall. 01760_ Acquired 48 matter. 01761_ U-05 Engineer builds a Wall. 01763_ K-01 Serf collects debris. 01812_ Lgt. Ion Engine destroyed. 01819_ The unstable cave ceiling collapses. 01844_ HAM2OU|BY%VMQSWN CNI91TT Map ----- +----------------------------------------------------+ | ## #"#????# #???????# ##???????????? | | # ##????# #???????## #?##????????? | | # ##???# #???????# #### ##??????? | | # ##??# #???????## ### ####???? | | = #### #######??## ## #???? | | % % #???# #???? | | % #??# ## #???? | | ########### #?## ### ##??? | | ### # # #???????????? # ### #??? | | ## ## # #????????????? #?# #??? | | ##### # # #????????????? #?# #??? | | #???? # ###?????????????# #?# #???? | | #????## ##???????####?### #??# ##???? | | ###?????# %#???????## ### #??# ##???? | | ##??????# ##??????# ##?## #???? | | ### #### #?????## ##### # #???? | | " "" ####### ### #???? | | ####### ## #?# ##??? | | ###?????# ## ### ##?? | | #???????## #?## d #?? | | ?????????#### d ##### ## #?? | | ????????????## ### #?## #?? | | ?????????????# # ##?## #?? | | ?????????????# #??## #?? | | ?????????????## ##???## ##?? | | ?????????????## @ ###?????####??? | | ???????????### ###?#???????????? | | ??????????## ## #???????????????? | | ??????????# #### #???????????????? | | ?????####?# ##?#########?????????????#?? | | ????## ### #??##""""##????????????#??? | | ????# #??#" "#???????????????? | | ????# """ ##??#" "#???????????????? | | ????# """ #???## ##???????????#???? | | ???## ## """ #?#?### ###??#????????????? | | ???# #### """ #?#?# X #????????#??????? | | ???# #??# ##### ##############??? | | ???## #??## ### #??? | | ????######???## #?# #??? | | ###???????????# ### #??? | | ###?????????# #??? | | ##????????# ### #??? | | < ########## #?# #??? | | #?# #??? | | #?# #??? | | # ###############?# #??? | | ####???????????????# #??? | | ???????????????????########################??? | | ??????????????????????????????##?????????????? | | ???????????????????##???????#????#???????#???? | +----------------------------------------------------+ Best States ------------- Heat Dissipation 25 Energy Generation 10 Energy Capacity 250 Matter Stores 300 Matter Capacity 300 Sight Range 16 Terrain Scan Range 16 Terrain Scan Density 10 Evasion (%) 55 Targeting Accuracy 5 Recoil Reduction 2 Item Schematics ----------------- None Robot Schematics ------------------ None Fabricated ------------ Nothing Alien Tech Used ----------------- None Achievements -------------- None Challenges ------------ None Game ------ Seed SpacefoldAblativeCompactor Manual? 0 Play Time 00:17:02 Cumulative 43.6 hours Start 2024.08.21 @ 00:28:05 End 2024.08.21 @ 00:44:36 Sessions 1 Manual Loads 0 Difficulty Rogue Special Mode None Game No. 59 Rogue 59 Adventurer 0 Explorer 0 Win Type - Total 0 Types 0/0/0/0/0/0/0/0/0 Lore% 14 Gallery% 25 Achievement% 24 Wizard Run 0 Options --------- Layout 1 ASCII 0 Keyboard 0 Movement Numpad Keybinds 0 Fullscreen 1 Font 32/SmallcapsGlow Map View 50x40 Zoom Use 0% Tactical HUD 1 Map Filters NONE Filters NONE Steam 1 RUN: be256075-0ea7-4924-97be-06e7befb604d